bitfinex/quotes_BTCUSD_20260103
["timestamp","ask_amount","ask_price","bid_price","bid_amount"]
[1767478417863,0.01105351,90469.0,90456.0,0.04843635]
[1767478418006,0.01105363,90468.0,90456.0,0.04843635]
[1767478418401,0.01105338,90470.0,90455.0,0.02212]
[1767478418402,0.01105448,90461.0,90455.0,0.02212]
[1767478418608,0.01105424,90463.0,90455.0,0.02212]
[1767478418829,0.01105412,90464.0,90455.0,0.02212]
[1767478419069,0.01105424,90463.0,90452.0,0.04843635]
[1767478419284,0.01105412,90464.0,90452.0,0.04843635]
[1767478419996,0.03317399,90465.0,90452.0,0.04843635]
[1767478420195,0.01105412,90464.0,90452.0,0.04843635]
[1767478420758,0.03317399,90465.0,90452.0,0.04843635]
[1767478421694,0.01105412,90464.0,90452.0,0.04843635]
[1767478424312,0.03317399,90465.0,90452.0,0.04843635]
[1767478424498,0.02212,90465.0,90452.0,0.04843635]
[1767478424864,0.02212,90465.0,90452.0,0.04814918]
[1767478425453,0.05526873,90468.0,90465.0,0.05943535]
[1767478425454,0.02212,90468.0,90465.0,0.05943535]
[1767478425676,0.02212,90471.0,90465.0,0.05839237]
[1767478425845,0.02212,90471.0,90465.0,0.00991204]
[1767478426102,0.02212,90471.0,90465.0,0.00986806]
[1767478427466,0.02212,90471.0,90465.0,0.00982408]
[1767478429816,0.02212,90471.0,90465.0,0.00953692]
[1767478435482,0.02212,90471.0,90460.0,0.36300696]
[1767478436852,0.03317326,90471.0,90460.0,0.04843635]
[1767478437052,0.03317326,90471.0,90460.0,0.3627198]
[1767478437267,0.03317326,90471.0,90460.0,0.31457061]
[1767478437853,0.04749597,90470.0,90460.0,0.26457061]
[1767478438071,0.04749597,90470.0,90460.0,0.23883096]
[1767478438271,0.01105338,90470.0,90461.0,0.04843635]
[1767478438476,0.03317326,90471.0,90461.0,0.04843635]
[1767478439689,0.01105338,90470.0,90461.0,0.04843635]
[1767478439889,0.03254315,90471.0,90461.0,0.04843635]
[1767478440294,0.00046308,90461.0,90456.0,0.04750943]
[1767478440493,8e-08,90461.0,90456.0,0.04750943]
[1767478441359,8e-08,90461.0,90456.0,0.00042002]
[1767478442079,0.01105351,90469.0,90461.0,0.00999992]
[1767478442281,0.01105351,90469.0,90456.0,0.00042002]
[1767478442482,0.01105338,90470.0,90456.0,0.00042002]
[1767478442837,0.01105338,90470.0,90457.0,0.04708941]
[1767478443601,0.02148989,90471.0,90456.0,0.00042002]
[1767478443787,0.01105351,90469.0,90457.0,0.04708941]
[1767478443957,0.03254315,90471.0,90457.0,0.04708941]
[1767478446378,0.01105338,90470.0,90457.0,0.04708941]
[1767478446727,0.01105363,90468.0,90457.0,0.04708941]
[1767478446952,0.01105375,90467.0,90457.0,0.04708941]
[1767478447239,0.01105375,90467.0,90457.0,0.04662641]
[1767478447612,0.01105387,90466.0,90457.0,0.04662641]
[1767478447743,0.01105375,90467.0,90457.0,0.04662641]
[1767478448157,0.01105338,90470.0,90457.0,0.04662641]
[1767478448331,0.01105351,90469.0,90457.0,0.04662641]
[1767478449145,0.01105351,90469.0,90457.0,0.04633925]
[1767478452397,0.03254315,90471.0,90457.0,0.04633925]
[1767478452805,0.01105338,90470.0,90457.0,0.04633925]
[1767478453222,0.03254315,90471.0,90457.0,0.04633925]
[1767478453425,0.01105338,90470.0,90457.0,0.04633925]
[1767478454154,0.01105338,90470.0,90457.0,0.04629528]
[1767478455764,0.02212,90469.0,90457.0,0.04629528]
[1767478459835,0.02212,90469.0,90460.0,0.04708941]
[1767478460488,0.02212,90469.0,90460.0,0.04704544]
[1767478461752,0.02212,90469.0,90460.0,0.04675833]
[1767478461901,0.02212,90469.0,90460.0,0.04647124]
[1767478462123,0.02212,90469.0,90460.0,0.04445085]
[1767478464387,4.352e-05,90475.0,90460.0,0.04445085]
[1767478464589,0.02212,90474.0,90460.0,0.04094904]
[1767478467083,0.02212,90474.0,90461.0,0.04708941]
[1767478471965,0.03317289,90474.0,90461.0,0.04708941]
[1767478473043,0.02212,90474.0,90461.0,0.04708941]
[1767478476452,0.02212,90473.0,90463.0,0.05943818]
[1767478476680,0.02212,90473.0,90463.0,0.04838394]
[1767478478612,0.02212,90473.0,90462.0,0.01105436]
[1767478479086,0.0069345,90472.0,90462.0,0.01105436]
[1767478479285,0.02212,90473.0,90463.0,0.06632532]
[1767478479465,0.02207911,90473.0,90463.0,0.06632532]
[1767478480090,0.02207911,90473.0,90463.0,0.11470926]
[1767478480247,0.02207911,90473.0,90464.0,0.04838394]
[1767478481954,4.352e-05,90475.0,90464.0,0.04838394]
[1767478483825,0.00697802,90475.0,90462.0,0.01105436]
[1767478484228,4.352e-05,90475.0,90463.0,0.04838394]
[1767478484434,0.0069345,90474.0,90460.0,0.0110546]
[1767478484575,0.0069345,90474.0,90462.0,0.01105436]
[1767478484779,4.352e-05,90475.0,90462.0,0.04838394]
[1767478486732,0.01105289,90474.0,90462.0,0.04838394]
[1767478487282,0.01109629,90475.0,90462.0,0.04738494]
[1767478489139,0.01105289,90474.0,90462.0,0.04738494]
[1767478490211,0.01109629,90475.0,90462.0,0.04738494]
[1767478490345,4.352e-05,90475.0,90462.0,0.04738494]
[1767478490546,0.0079335,90474.0,90458.0,0.01105485]
[1767478490770,0.01109629,90475.0,90459.0,0.04838394]
[1767478490989,0.01109629,90475.0,90459.0,0.05943867]
[1767478491237,4.352e-05,90475.0,90459.0,0.05943867]
[1767478491456,4.352e-05,90475.0,90459.0,0.04838394]
[1767478491619,0.01105289,90474.0,90459.0,0.04838394]
[1767478491819,0.01109629,90475.0,90459.0,0.04838394]
[1767478492226,0.01105289,90474.0,90459.0,0.04838394]
[1767478494343,0.01105302,90473.0,90459.0,0.04838394]
[1767478494653,0.01105289,90474.0,90459.0,0.04838394]
[1767478495141,0.01105302,90473.0,90459.0,0.04838394]
[1767478495288,0.01105289,90474.0,90459.0,0.04838394]
[1767478495789,0.01105302,90473.0,90459.0,0.04838394]
[1767478496026,0.01105302,90473.0,90456.0,0.03359511]
[1767478496230,0.01898664,90472.0,90456.0,0.02254002]
[1767478496431,0.01898664,90472.0,90456.0,0.03359511]
[1767478496609,0.0079335,90472.0,90456.0,0.03359511]
[1767478497351,0.0079335,90472.0,90457.0,0.01105497]
[1767478497556,0.0079335,90472.0,90456.0,0.03359511]
[1767478497788,0.01105302,90473.0,90457.0,0.04838394]
[1767478499724,0.01105289,90474.0,90457.0,0.05943891]
[1767478500263,4.352e-05,90475.0,90460.0,0.05607746]
[1767478500527,0.00797702,90475.0,90460.0,0.0110546]
[1767478500707,0.00797702,90475.0,90463.0,0.01105424]
[1767478501049,0.00797702,90475.0,90462.0,0.01105436]
[1767478501755,0.00797702,90475.0,90464.0,0.01105412]
[1767478501944,0.05527153,90560.0,90461.0,0.06632642]
[1767478501945,0.01105131,90487.0,90470.0,0.01105338]
[1767478502098,0.01105094,90490.0,90477.0,0.04704575]
[1767478502341,0.01105094,90490.0,90477.0,0.04700036]
[1767478502528,0.03317082,90491.0,90477.0,0.04700036]
[1767478503540,0.02212,90491.0,90477.0,0.04700036]
[1767478504147,0.03317082,90491.0,90477.0,0.04700036]
[1767478505134,0.00226708,90490.0,90477.0,0.0019775]
[1767478505651,0.01105094,90490.0,90477.0,0.04700036]
[1767478505858,0.03317082,90491.0,90477.0,0.04700036]
[1767478506619,0.00226708,90489.0,90477.0,0.0019775]
[1767478506820,0.02212,90491.0,90477.0,0.04700036]
[1767478506971,0.01105094,90490.0,90477.0,0.04700036]
[1767478507373,0.03317082,90491.0,90477.0,0.04700036]
[1767478508112,0.01105094,90490.0,90477.0,0.04700036]
[1767478508456,0.03317082,90491.0,90477.0,0.04700036]
[1767478508857,0.01105106,90489.0,90477.0,0.04700036]
[1767478509110,0.01105118,90488.0,90477.0,0.04502286]
[1767478509307,0.01105106,90489.0,90477.0,0.04502286]
[1767478509507,0.01105118,90488.0,90477.0,0.04502286]
[1767478510076,0.01105106,90489.0,90477.0,0.04502286]
[1767478511266,0.01105094,90490.0,90477.0,0.04502286]
[1767478512473,0.03317082,90491.0,90477.0,0.04502286]
[1767478512896,0.02212,90491.0,90477.0,0.04502286]
[1767478513409,0.02212,90491.0,90477.0,0.05607539]
[1767478513612,0.02212,90491.0,90477.0,0.04502286]
[1767478514918,0.02212,90491.0,90477.0,0.05607539]
[1767478515299,0.02212,90491.0,90480.0,0.04502286]
[1767478515949,0.02212,90492.0,90480.0,0.04502286]
[1767478516560,0.02212,90492.0,90480.0,0.05607502]
[1767478516742,0.02212,90492.0,90482.0,0.04502286]
[1767478516941,0.0001518,90496.0,90484.0,0.04502286]
[1767478517253,0.02212,90495.0,90484.0,0.04502286]
[1767478519964,0.0001518,90496.0,90484.0,0.04502286]
[1767478522707,0.0001518,90496.0,90484.0,0.05607453]
[1767478522851,0.0001518,90496.0,90486.0,0.04502286]
[1767478523049,0.0001518,90496.0,90487.0,0.01105131]
[1767478523256,0.01331558,90510.0,90486.0,0.04502286]
[1767478523257,0.01104813,90513.0,90496.0,0.0001518]
[1767478523484,0.01104801,90514.0,90497.0,0.05482559]
[1767478523638,0.01104813,90513.0,90497.0,0.05482559]
[1767478523992,0.01104801,90514.0,90497.0,0.05482559]
[1767478524422,0.01104813,90513.0,90497.0,0.05482559]
[1767478525251,0.01104801,90514.0,90497.0,0.05482559]
[1767478525792,0.01104813,90513.0,90497.0,0.05482559]
[1767478526626,0.01104801,90514.0,90497.0,0.05482559]
[1767478526962,0.01104813,90513.0,90497.0,0.05482559]
[1767478527164,0.01104825,90512.0,90497.0,0.05482559]
[1767478527297,0.01104825,90512.0,90497.0,0.00980273]
[1767478527705,0.01104825,90512.0,90497.0,0.05482559]
[1767478528150,0.01104801,90514.0,90503.0,0.04502286]
[1767478528362,0.01104801,90514.0,90497.0,0.00980273]
[1767478528363,0.00241888,90513.0,90497.0,0.00980273]
[1767478528595,0.00241888,90513.0,90494.0,0.01105045]
[1767478528773,0.00241888,90513.0,90494.0,0.05607331]
[1767478529173,0.01346701,90513.0,90495.0,0.04502286]
[1767478530424,0.01104825,90512.0,90495.0,0.04502286]
[1767478530554,0.01346701,90513.0,90495.0,0.04502286]
[1767478530755,0.01104813,90513.0,90495.0,0.05607319]
[1767478531054,0.01104813,90513.0,90495.0,0.04502286]
[1767478531262,0.0222718,90515.0,90501.0,0.04738928]
[1767478531469,0.03331969,90515.0,90501.0,0.04738928]
[1767478531660,0.03331969,90515.0,90500.0,0.31453301]
[1767478531882,0.02469068,90515.0,90500.0,0.31453301]
[1767478532083,0.02469068,90515.0,90497.0,0.01105009]
[1767478532303,0.03331969,90515.0,90498.0,0.04738928]
[1767478534280,0.0222718,90515.0,90498.0,0.05843924]
[1767478534479,0.0222718,90515.0,90501.0,0.04738928]
[1767478534735,0.02220295,90515.0,90501.0,0.05843888]
[1767478535039,0.02220295,90515.0,90501.0,0.04738928]
[1767478535233,0.0221341,90515.0,90501.0,0.04738928]
[1767478535440,0.0221341,90515.0,90501.0,0.05843888]
[1767478537334,0.0221341,90515.0,90503.0,0.04738928]
[1767478538370,0.0221341,90515.0,90506.0,0.04738928]
[1767478538868,4.547e-05,90506.0,90497.0,0.05952912]
[1767478539165,0.0221341,90515.0,90492.0,0.0110507]
[1767478539166,0.01104825,90512.0,90501.0,0.04738928]
[1767478539363,0.00887563,90512.0,90501.0,0.04738928]
[1767478539566,0.00670301,90512.0,90501.0,0.04738928]
[1767478539917,0.00670301,90512.0,90490.0,0.39632971]
[1767478539918,0.01104862,90509.0,90494.0,0.04738928]
[1767478540519,0.0110485,90510.0,90494.0,0.04738928]
[1767478541123,0.01104825,90512.0,90494.0,0.04738928]
[1767478541647,0.0110485,90510.0,90494.0,0.04738928]
[1767478541847,0.01104838,90511.0,90494.0,0.04738928]
[1767478543049,0.01104825,90512.0,90494.0,0.04738928]
[1767478543261,0.01104838,90511.0,90494.0,0.04738928]
[1767478543461,0.01104838,90511.0,90500.0,0.31420902]
[1767478543680,0.01104838,90511.0,90500.0,0.3615983]
[1767478543893,0.01104825,90512.0,90500.0,0.3615983]
[1767478544578,0.01115569,90512.0,90500.0,0.3615983]
[1767478544761,0.01115569,90512.0,90501.0,0.04738928]
[1767478546776,0.01104838,90511.0,90501.0,0.04738928]
[1767478547104,0.0110485,90510.0,90490.0,0.39632971]
[1767478547291,0.01104862,90509.0,90491.0,0.04738928]
[1767478547489,0.01104874,90508.0,90491.0,0.04738928]
[1767478548504,0.01104862,90509.0,90491.0,0.04738928]
[1767478549426,0.01104874,90508.0,90491.0,0.04738928]
[1767478549792,0.01104862,90509.0,90491.0,0.04738928]
[1767478549990,0.06629176,90509.0,90491.0,0.04738928]
[1767478550175,0.01104862,90509.0,90491.0,0.04738928]
[1767478550781,0.01104886,90507.0,90491.0,0.04738928]
[1767478551027,0.01104874,90508.0,90491.0,0.04738928]
[1767478552202,0.01104862,90509.0,90492.0,0.04738928]
[1767478552887,0.01104874,90508.0,90492.0,0.04738928]
[1767478553069,0.01104862,90509.0,90492.0,0.04738928]
[1767478553070,0.0110485,90510.0,90492.0,0.04738928]
[1767478553265,0.0110485,90510.0,90493.0,0.04738928]
[1767478553843,0.01104862,90509.0,90493.0,0.04738928]
[1767478554045,0.0110485,90510.0,90493.0,0.04738928]
[1767478554646,0.01104862,90509.0,90493.0,0.04738928]
[1767478554853,0.0110485,90510.0,90493.0,0.04738928]
[1767478555063,0.02536735,90510.0,90493.0,0.04738928]
[1767478555486,0.01431885,90510.0,90493.0,0.04738928]
[1767478555678,0.02536735,90510.0,90493.0,0.04738928]
[1767478556254,0.01431885,90510.0,90493.0,0.04738928]
[1767478556479,0.02536735,90510.0,90493.0,0.04738928]
[1767478557060,0.02536747,90509.0,90492.0,0.09915891]
[1767478557393,0.01431885,90509.0,90492.0,0.09915891]
[1767478558914,0.02536747,90509.0,90492.0,0.09915891]
[1767478559212,0.01104874,90508.0,90492.0,0.09915891]
[1767478559418,0.01104874,90508.0,90493.0,0.04738928]
[1767478559558,0.01104862,90509.0,90493.0,0.04738928]
[1767478559761,0.01104874,90508.0,90493.0,0.04738928]
[1767478560164,0.01104899,90506.0,90493.0,0.04738928]
[1767478560580,0.01104874,90508.0,90493.0,0.04738928]
[1767478560786,0.01104886,90507.0,90493.0,0.04738928]
[1767478561012,0.01104874,90508.0,90493.0,0.04738928]
[1767478561252,0.01431885,90509.0,90492.0,0.09915891]
[1767478561388,0.53518151,90510.0,90491.0,0.1497]
[1767478561389,0.01104984,90499.0,90491.0,0.1497]
[1767478561586,0.055248,90501.0,90491.0,0.1497]
[1767478561788,0.01104923,90504.0,90491.0,0.19711749]
[1767478562252,0.03316911,90505.0,90492.0,0.04741749]
[1767478562844,0.02212,90504.0,90492.0,0.04741749]
[1767478563593,0.03316923,90504.0,90492.0,0.04741749]
[1767478563746,0.02212,90504.0,90492.0,0.04741749]
[1767478564268,0.03316923,90504.0,90492.0,0.04741749]
[1767478564768,0.01104935,90503.0,90492.0,0.04741749]
[1767478565265,0.03316923,90504.0,90492.0,0.04741749]
[1767478565486,0.02212,90503.0,90492.0,0.04741749]
[1767478566566,0.03316935,90503.0,90492.0,0.04741749]
[1767478566723,0.01104935,90503.0,90492.0,0.04741749]
[1767478567093,0.01104947,90502.0,90492.0,0.04741749]
[1767478567281,0.0110496,90501.0,90492.0,0.04741749]
[1767478567482,0.01104984,90499.0,90492.0,0.04741749]
[1767478567700,0.01104996,90498.0,90492.0,0.04741749]
[1767478568101,0.01104984,90499.0,90492.0,0.04741749]
[1767478568655,0.01104972,90500.0,90492.0,0.04741749]
[1767478569406,0.01104972,90500.0,90489.0,0.31420902]
[1767478569713,0.02536857,90500.0,90489.0,0.31420902]
[1767478570188,0.01098087,90500.0,90490.0,0.04741749]
[1767478570793,0.01104947,90502.0,90490.0,0.04741749]
[1767478571303,0.02212,90503.0,90490.0,0.04741749]
[1767478571500,0.01104947,90502.0,90490.0,0.04741749]
[1767478573307,0.01104947,90502.0,90490.0,0.04582386]
[1767478573914,0.0110496,90501.0,90490.0,0.04582386]
[1767478575038,0.01104947,90502.0,90490.0,0.04582386]
[1767478576533,0.02212,90503.0,90490.0,0.04582386]
[1767478577991,0.02205115,90503.0,90490.0,0.04582386]
[1767478578267,0.0331005,90503.0,90490.0,0.04582386]
[1767478578446,0.02205115,90503.0,90490.0,0.04582386]
[1767478580603,0.02205115,90503.0,90490.0,0.36003288]
[1767478580756,0.02205115,90503.0,90491.0,0.04741749]
[1767478583364,0.01104874,90508.0,90503.0,0.03091749]
[1767478583570,0.02212,90507.0,90498.0,0.31420902]
[1767478583732,0.02212,90507.0,90497.0,0.04741749]
[1767478583932,0.02212,90507.0,90490.0,0.32525996]
[1767478583933,0.04766753,90506.0,90490.0,0.32525996]
[1767478584172,0.04766753,90506.0,90490.0,0.31420902]
[1767478584352,0.04766753,90506.0,90490.0,0.32525996]
[1767478584561,0.02212,90507.0,90496.0,0.31420902]
[1767478584764,0.02205114,90507.0,90491.0,0.05846831]
[1767478584973,0.0110485,90510.0,90491.0,0.05846831]
[1767478584974,0.02212,90506.0,90497.0,0.31420902]
[1767478585186,0.02212,90506.0,90497.0,0.04741749]
[1767478590491,9e-05,90524.0,90508.0,0.04530749]
[1767478590694,0.0110452,90537.0,90522.0,0.04530749]
[1767478590916,0.03316398,90547.0,90528.0,0.04530749]
[1767478591142,0.01104411,90546.0,90528.0,0.04530749]
[1767478591385,0.04828052,90542.0,90523.0,0.03316691]
[1767478591605,0.01104508,90538.0,90523.0,0.02212]
[1767478592015,0.0110452,90537.0,90523.0,0.06773764]
[1767478592228,0.01104472,90541.0,90523.0,0.06773764]
[1767478592407,0.01104447,90543.0,90524.0,0.01104679]
[1767478592618,0.01104447,90543.0,90523.0,0.06773764]
[1767478592762,0.06626736,90543.0,90523.0,0.07878455]
[1767478592962,0.06626736,90543.0,90524.0,0.04561764]
[1767478593175,0.06626417,90547.0,90525.0,0.02212]
[1767478593392,0.01104435,90544.0,90525.0,0.02212]
[1767478593815,0.01104447,90543.0,90525.0,0.02212]
[1767478594144,0.01104447,90543.0,90530.0,0.31420902]
[1767478594347,0.05932511,90542.0,90530.0,0.31420902]
[1767478596037,0.04828052,90542.0,90530.0,0.31420902]
[1767478596209,0.05932511,90542.0,90530.0,0.31420902]
[1767478596610,0.05932511,90542.0,90525.0,0.02212]
[1767478597991,0.04828052,90542.0,90525.0,0.02212]
[1767478598386,0.04828052,90542.0,90525.0,0.03316667]
[1767478598585,0.05932511,90542.0,90525.0,0.02212]
[1767478598878,0.04828052,90542.0,90525.0,0.02212]
[1767478599026,0.04828052,90542.0,90526.0,0.01104655]
[1767478599225,0.04828052,90542.0,90527.0,0.01104642]
[1767478599556,0.04828052,90542.0,90526.0,0.04561764]
[1767478599981,0.04828052,90542.0,90526.0,0.05666419]
[1767478600184,0.04828052,90542.0,90526.0,0.01104655]
[1767478600416,0.04828052,90542.0,90527.0,0.01104642]
[1767478601330,0.04828052,90542.0,90527.0,0.01075956]
[1767478601452,0.0001518,90542.0,90527.0,0.0563772]
[1767478602286,0.0001518,90542.0,90527.0,0.04561764]
[1767478603412,0.01119639,90542.0,90527.0,0.04561764]
[1767478606029,0.01104472,90541.0,90527.0,0.04561764]
[1767478606203,0.0001518,90542.0,90527.0,0.04561764]
[1767478606407,0.01119639,90542.0,90527.0,0.04561764]
[1767478606587,0.0001518,90542.0,90527.0,0.04561764]
[1767478607807,0.01104484,90540.0,90527.0,0.04561764]
[1767478608014,0.01104472,90541.0,90527.0,0.04561764]
[1767478608410,0.01119639,90542.0,90527.0,0.04561764]
[1767478609466,0.0001518,90542.0,90527.0,0.04561764]
[1767478610320,0.01119639,90542.0,90527.0,0.04561764]
[1767478612173,0.0001518,90542.0,90527.0,0.04561764]
[1767478612593,0.05932511,90542.0,90526.0,0.04561764]
[1767478612838,0.01104581,90532.0,90522.0,9.096e-05]
[1767478613049,0.01104581,90539.0,90518.0,0.04561764]
[1767478613257,0.01104581,90539.0,90516.0,0.08350812]
[1767478613258,0.06524635,90538.0,90517.0,0.05666528]
[1767478613459,0.0110452,90537.0,90517.0,0.05666528]
[1767478613886,0.01104533,90536.0,90518.0,0.01104752]
[1767478614092,0.01104533,90536.0,90517.0,0.05666528]
[1767478614301,0.01104569,90533.0,90529.0,0.00544517]
[1767478614511,0.01104557,90534.0,90516.0,0.07805132]
[1767478614709,0.01104569,90533.0,90516.0,0.07805132]
[1767478615158,0.01104569,90533.0,90517.0,0.04561764]
[1767478615371,0.01104581,90532.0,90517.0,0.04561764]
[1767478615572,2e-08,90532.0,90522.0,0.04561764]
[1767478615993,0.01104557,90534.0,90522.0,0.04462596]
[1767478616193,0.01104569,90533.0,90522.0,0.04462596]
[1767478616398,0.01104581,90532.0,90522.0,0.04462596]
[1767478616613,0.05622016,90533.0,90516.0,0.02212]
[1767478616814,0.05522848,90533.0,90516.0,0.02212]
[1767478617248,0.01104581,90532.0,90516.0,0.02212]
[1767478617477,0.06627417,90533.0,90516.0,0.02212]
[1767478617919,0.06627417,90533.0,90517.0,0.04561764]
[1767478618613,0.01104569,90533.0,90517.0,0.04561764]
[1767478618883,0.03969867,90591.0,90517.0,0.04561764]
[1767478618884,0.0001518,90542.0,90517.0,0.04561764]
[1767478619052,0.01104545,90535.0,90517.0,0.04561764]
[1767478619270,0.01104533,90536.0,90517.0,0.05666528]
[1767478619748,0.01104545,90535.0,90517.0,0.04561764]
[1767478619950,0.01104533,90536.0,90517.0,0.05666528]
[1767478620096,0.01104508,90538.0,90518.0,0.05931934]
[1767478620299,0.0110452,90537.0,90519.0,0.04827182]
[1767478620500,0.01104508,90538.0,90519.0,0.05931922]
[1767478620713,0.01104508,90538.0,90522.0,0.04827182]
[1767478620921,0.01104496,90539.0,90522.0,0.04822644]
[1767478621140,0.0332557,90541.0,90522.0,0.04822644]
[1767478621363,0.02221098,90541.0,90527.0,0.04827182]
[1767478621782,0.0001518,90542.0,90541.0,0.04817181]
[1767478622011,1e-08,90548.0,90532.0,0.01104581]
[1767478622231,4.004e-05,90552.0,90548.0,0.01]
[1767478622450,0.01104154,90567.0,90548.0,0.005244]
[1767478622675,0.01104191,90564.0,90549.0,0.04827182]
[1767478622928,0.01104179,90565.0,90549.0,0.04827182]
[1767478623126,0.01104191,90564.0,90549.0,0.04817182]
[1767478623353,0.01104191,90564.0,90531.0,0.09927203]
[1767478623354,0.0110424,90560.0,90544.0,0.04801483]
[1767478624036,0.01104228,90561.0,90544.0,0.04801483]
[1767478624847,0.05520965,90564.0,90544.0,0.04801483]
[1767478625095,0.01104167,90566.0,90546.0,0.05931593]
[1767478625315,0.01104167,90566.0,90548.0,0.04827182]
[1767478625536,0.01104167,90566.0,90546.0,0.01104411]
[1767478625537,0.0331613,90569.0,90554.0,0.04827182]
[1767478625756,0.02212,90568.0,90554.0,0.04822643]
[1767478625975,0.02212,90567.0,90554.0,0.04822643]
[1767478626201,0.06624573,90572.0,90554.0,0.04822643]
[1767478626432,0.0110413,90569.0,90554.0,0.04822643]
[1767478626647,0.01104154,90567.0,90554.0,0.04822643]
[1767478626891,0.01104179,90565.0,90554.0,0.03722643]
[1767478627106,0.01104167,90566.0,90554.0,0.03637943]
[1767478627756,0.05520732,90568.0,90554.0,0.03637943]
[1767478627757,0.01104154,90567.0,90554.0,0.03637943]
[1767478628419,0.01104154,90567.0,90548.0,0.01104386]
[1767478628420,0.01104106,90571.0,90567.0,0.000999]
[1767478628642,0.0001,90567.0,90563.0,0.04277182]
[1767478628855,0.0001,90567.0,90563.0,0.01516386]
[1767478629071,0.000999,90563.0,90550.0,0.3085517]
[1767478629284,0.000999,90563.0,90551.0,0.04827182]
[1767478629688,0.00035793,90563.0,90551.0,0.04827182]
[1767478629931,0.00035793,90563.0,90551.0,0.05931532]
[1767478630232,1.15520966,90620.0,90550.0,0.32509532]
[1767478630233,0.01104045,90576.0,90558.0,0.04827182]
[1767478630421,0.01104045,90576.0,90555.0,0.01104301]
[1767478630422,0.01104069,90574.0,90555.0,0.05931483]
[1767478630642,0.01104069,90574.0,90563.0,0.00035793]
[1767478630643,0.04951948,90573.0,90563.0,0.00035793]
[1767478630862,0.03847867,90572.0,90554.0,0.01104313]
[1767478631082,0.01094057,90575.0,90556.0,0.04827182]
[1767478631279,0.01094057,90575.0,90556.0,0.05931471]
[1767478632208,0.01094057,90575.0,90556.0,0.04822643]
[1767478632430,0.01104069,90574.0,90556.0,0.04822643]
[1767478632843,0.01094057,90575.0,90556.0,0.04822643]
[1767478633052,0.01094057,90575.0,90556.0,0.05926932]
[1767478635299,0.01114777,90576.0,90556.0,0.04822643]
[1767478636161,0.01114777,90576.0,90556.0,0.05926932]
[1767478637004,0.01104057,90575.0,90556.0,0.05926932]
[1767478637426,0.01104057,90575.0,90557.0,0.04827182]
[1767478639141,0.00010732,90576.0,90559.0,0.04827182]
[1767478639568,0.01114777,90576.0,90559.0,0.04827182]
[1767478641035,0.01104057,90575.0,90559.0,0.04827182]
[1767478643431,0.01104057,90575.0,90557.0,0.04827182]
[1767478644524,0.01114777,90576.0,90557.0,0.05931458]
[1767478644738,0.01114777,90576.0,90557.0,0.04827182]
[1767478645435,0.01104081,90573.0,90557.0,0.04827182]
[1767478645654,0.01104069,90574.0,90557.0,0.04827182]
[1767478646465,0.01104057,90575.0,90557.0,0.04827182]
[1767478646685,0.01104069,90574.0,90557.0,0.04827182]
[1767478646887,0.01104057,90575.0,90557.0,0.04827182]
[1767478647097,0.01104081,90573.0,90557.0,0.04827182]
[1767478647512,0.01104093,90572.0,90557.0,0.04827182]
[1767478647932,0.01104069,90574.0,90557.0,0.04827182]
[1767478648134,0.01104081,90573.0,90557.0,0.04827182]
[1767478648383,0.01104069,90574.0,90557.0,0.04827182]
[1767478649288,0.01104081,90573.0,90557.0,0.04827182]
[1767478649503,0.01104057,90575.0,90557.0,0.04827182]
[1767478649715,0.01104069,90574.0,90557.0,0.04827182]
[1767478649933,0.01104093,90572.0,90557.0,0.04827182]
[1767478650353,0.01104093,90572.0,90562.0,0.03618307]
[1767478650986,0.01104081,90573.0,90562.0,0.03618307]
[1767478651846,0.01104069,90574.0,90562.0,0.03618307]
[1767478652263,0.011,90573.0,90555.0,0.03312301]
[1767478652468,0.011,90572.0,90555.0,0.02208]
[1767478652597,0.011,90572.0,90555.0,0.03312301]
[1767478652941,0.011,90572.0,90555.0,0.02208]
[1767478653378,0.011,90572.0,90556.0,0.01104289]
[1767478653600,0.011,90572.0,90555.0,0.03312301]
[1767478654168,0.011,90572.0,90556.0,0.01104289]
[1767478654393,0.011,90572.0,90555.0,0.08133308]
[1767478654600,0.011,90572.0,90556.0,0.04821007]
[1767478654931,0.01104069,90574.0,90556.0,0.04821007]
[1767478655386,0.01104069,90574.0,90556.0,0.05925296]
[1767478656013,0.02204081,90573.0,90556.0,0.04821007]
[1767478656149,0.02204093,90572.0,90555.0,0.02208]
[1767478656631,0.02204093,90572.0,90555.0,0.07029007]
[1767478657032,0.011,90571.0,90555.0,0.07029007]
[1767478657283,0.02204106,90571.0,90555.0,0.07029007]
[1767478657482,0.011,90569.0,90555.0,0.02208]
[1767478657684,0.01104106,90571.0,90555.0,0.02208]
[1767478657685,0.01104093,90572.0,90556.0,0.04821007]
[1767478658487,0.31388565,90570.0,90556.0,0.04821007]
[1767478659466,0.01104093,90572.0,90556.0,0.04821007]
[1767478660065,0.01104081,90573.0,90556.0,0.04821007]
[1767478661969,0.01104118,90570.0,90556.0,0.04821007]
[1767478662283,0.0110413,90569.0,90556.0,0.04821007]
[1767478662421,0.01104118,90570.0,90556.0,0.04821007]
[1767478662422,0.31388565,90570.0,90556.0,0.04821007]
[1767478662622,0.01104154,90567.0,90556.0,0.03714868]
[1767478662809,0.01104167,90566.0,90556.0,0.03714868]
[1767478663009,0.01104154,90567.0,90554.0,0.02208]
[1767478663209,0.01327609,90566.0,90554.0,0.02208]
[1767478664800,0.0110413,90569.0,90554.0,0.07029007]
[1767478664969,0.01104154,90567.0,90554.0,0.07029007]
[1767478665148,0.01104142,90568.0,90554.0,0.07029007]
[1767478665812,0.0110413,90569.0,90554.0,0.07029007]
[1767478666400,0.01327609,90568.0,90554.0,0.02208]
[1767478666527,0.01327609,90568.0,90551.0,0.02208]
[1767478667170,0.02431751,90568.0,90551.0,0.02208]
[1767478668000,0.01327609,90568.0,90551.0,0.02208]
[1767478668207,0.01104142,90568.0,90552.0,0.04821007]
[1767478668769,0.0110413,90569.0,90552.0,0.04821007]
[1767478669001,0.32492683,90570.0,90552.0,0.04821007]
[1767478669199,0.0110413,90569.0,90552.0,0.04821007]
[1767478669400,0.32492683,90570.0,90552.0,0.04821007]
[1767478669600,0.0110413,90569.0,90552.0,0.04821007]
[1767478670791,0.38013312,90570.0,90552.0,0.04821007]
[1767478670987,0.0110413,90569.0,90552.0,0.04821007]
[1767478671226,0.01104142,90568.0,90552.0,0.04821007]
[1767478671407,0.0110413,90569.0,90552.0,0.04821007]
[1767478673096,0.01104142,90568.0,90552.0,0.04821007]
[1767478673440,0.38013312,90570.0,90552.0,0.04821007]
[1767478674386,0.32492683,90570.0,90552.0,0.04821007]
[1767478675193,0.0110413,90569.0,90552.0,0.04821007]
[1767478675514,0.32492683,90570.0,90552.0,0.04821007]
[1767478676402,0.0110413,90569.0,90552.0,0.04821007]
[1767478676582,0.38013313,90570.0,90552.0,0.04821007]
[1767478676743,0.0110413,90569.0,90552.0,0.04821007]
[1767478676932,0.32492683,90570.0,90552.0,0.04821007]
[1767478677583,0.0110413,90569.0,90552.0,0.04821007]
[1767478678196,0.32492683,90570.0,90552.0,0.04821007]
[1767478679470,0.0110413,90569.0,90552.0,0.04821007]